Cogmind - Beta 15 @@@ ROGUE MODE // 2025.10.03 @ 23:52:14 Player: Holographiti Result: Destroyed by G-50 Soldier with Heavy Laser Performance ------------- Evolutions (5) 2500 Regions Visited (8) 1600 Robots Destroyed (35) 175 Value Destroyed (1438) 1438 Prototype IDs (7) 140 Alien Tech Used (0) 0 Bonus (951) 951 TOTAL SCORE: 6804 Bonus ------- Follower Combat Kills 478 Entered DSFs 500 Friendly Fire -27 Cogmind --------- Core Integrity 0/1000 Matter 40/300 Energy 432/450 System Corruption 11% Temperature Warm (187) Movement Core (1550) Ox30 Location -5/Factory Parts ------- > --- POWER (2) -------- (None) > --- PROPULSION (5) --- (None) > --- UTILITY (6) ------ Huge Storage Unit Energy Well Machine Analyzer Improved Target Analyzer Improved Focal Shield > --- WEAPON (4) ------- Cooled Plasma Rifle > --- INVENTORY (25) --- Light Fission Core Light Fission Core Antimatter Reactor Armored Medium Treads Heavy Treads Armored Leg Power Amplifier Advanced Recoil Stabilizer Hardened Medium Armor Plating Component Analysis Suite Recalibrator Heavy Gatling Laser Heavy Gatling Laser Long-range Proton Cannon Hypervelocity Gauss Rifle Hypervelocity Gauss Rifle Hypervelocity Gauss Rifle Peak State ------------ > --- POWER ------------ Antimatter Reactor Antimatter Reactor > --- PROPULSION ------- Heavy Treads Heavy Treads Centrium Leg > --- UTILITY ---------- Medium Storage Unit Improved Signal Interpreter Damper Plating > --- WEAPON ----------- Wave Gun Heavy Battle Rifle Slug Cannon Mass Driver > --- INVENTORY -------- Light Quantum Reactor Flexi-carbon Leg Thunder Leg Huge Storage Unit Improved Phase Shifter Hardened Medium Armor Plating Backup Laser III Gauss Rifle [Rating: 98] Favorites ----------- Power Antimatter Reactor Engine Ion Engine Power Core Fusion Compressor Reactor Antimatter Reactor Propulsion Makeshift Leg Treads Heavy Treads Leg Makeshift Leg Hover Unit Gravmag System Flight Unit Nuclear Pulse Array Utility Light Humpback Device Recalibrator Storage Light Humpback Processor Improved Signal Interpreter Hackware Hacking Suite Protection Core Shielding Weapon Battle Cannon Energy Gun Backup Laser III Energy Cannon Subdweller Beam Cannon Ballistic Gun Heavy Battle Rifle Ballistic Cannon Battle Cannon Special Weapon Mining Laser Build | -11 -10 -10 -8 -6 -6 -5 -5 -5 ------- Run | Yrd Mat Sub Scr Fac DSF Fac Was Fac Slots Evolved 10 | . . . . 8 . 2 . . Power 1 | . . . . 1 . . . . Propulsion 3 | . . . . 3 . . . . Utility 4 | . . . . 3 . 1 . . Weapon 2 | . . . . 1 . 1 . . Parts Attached 110 | 6 3 13 1 6 23 14 17 27 Power 15 | 1 1 1 1 . 2 2 3 4 Engine 7 | 1 1 1 1 . 1 2 . . Core 4 | . . . . . 1 . . 3 Reactor 4 | . . . . . . . 3 1 Propulsion 28 | 2 . 5 . 1 5 5 5 5 Treads 3 | . . . . . . . 2 1 Leg 14 | 2 . 5 . 1 1 . 1 4 Wheel . | . . . . . . . . . Hover 7 | . . . . . 4 2 1 . Flight 4 | . . . . . . 3 1 . Utility 38 | 1 2 1 . 4 11 6 4 9 Device 7 | . . . . 2 . 1 . 4 Storage 7 | 1 1 1 . . . 1 . 3 Processor 7 | . . . . 1 2 2 . 2 Hackware 2 | . . . . . . 2 . . Protection 15 | . 1 . . 1 9 . 4 . Artifact . | . . . . . . . . . Weapon 29 | 2 . 6 . 1 5 1 5 9 Energy Gun 11 | 2 . 1 . . 2 . 1 5 Energy Cannon 7 | . . 1 . . 2 1 2 1 Ballistic Gun 5 | . . 1 . . 1 . 2 1 Ballistic Cannon 4 | . . 1 . 1 . . . 2 Launcher . | . . . . . . . . . Special Weapon 2 | . . 2 . . . . . . Impact Weapon . | . . . . . . . . . Slashing Weapon . | . . . . . . . . . Piercing Weapon . | . . . . . . . . . Special Melee Weapon . | . . . . . . . . . Unidentified Prototypes 3 | . . . . . . . 1 2 Parts Lost 69 | . . 8 . . 32 11 1 17 Power 10 | . . 2 . . 2 2 . 4 Propulsion 18 | . . 2 . . 6 4 . 6 Utility 22 | . . . . . 14 4 1 3 Weapon 18 | . . 4 . . 9 1 . 4 Highest Loss Streak 18 | . . 5 . . 18 9 1 10 To Critical Strikes 1 | . . . . . 1 . . . Average Backups 9 | . 3 6 17 13 6 1 4 9 Power . | . . . . . . . . 2 Propulsion 1 | . 1 1 2 . . . . 2 Utility 3 | . . 2 7 6 3 1 2 2 Weapon 3 | . 1 2 7 6 2 . 1 2 Tool/Special . | . . . . . . . . . Unused Backups 24 | . . 1 2 1 7 . 1 12 Power 2 | . . . . . . . . 2 Propulsion 1 | . . . . . . . . 1 Utility 12 | . . 1 1 1 5 . 1 3 Weapon 9 | . . . 1 . 2 . . 6 Tool/Special . | . . . . . . . . . Average Slot Usage (%) 75 | . 97 93 57 77 64 52 66 77 Engine 8 | . 14 13 14 6 4 1 1 . Reactor 2 | . . . . . . . 8 8 Treads 1 | . . . . . . . 7 5 Leg 21 | . 28 27 28 29 21 . 4 15 Hover 1 | . . . . . . 18 2 . Device 1 | . . . . 3 3 3 . 3 Storage 9 | . 14 14 14 6 1 2 1 5 Processor 2 | . . . . 5 7 1 7 6 Protection 5 | . 11 8 . 4 8 8 6 4 Energy Gun 5 | . 28 3 . . 5 . 9 8 Energy Cannon 3 | . . 8 . 5 4 . . 2 Ballistic Gun 2 | . . 5 . . . . 7 2 Ballistic Cannon 4 | . . 10 . 12 3 . . 5 Peak Build Rating 98 | 6 7 17 18 46 57 59 93 98 Average Rating 35 | 4 6 12 15 38 35 40 76 84 On Entrance 23 | . 6 7 17 18 46 14 11 93 Naked Turns . | . . . . . . . . . Heaviest Build 181 | 11 17 56 56 78 78 27 89 181 Greatest Support 167 | 20 20 40 40 90 98 48 140 167 Greatest Overweight (x) 35 | . . 1 1 1 9 2 1 35 Average Overweight (x) . | . . . 1 . . . . . Largest Inventory Capacity 25 | 8 10 25 25 25 25 5 5 25 Average Capacity 16 | 6 8 16 25 25 9 5 5 19 Most Carried 25 | 1 7 16 25 24 25 5 5 22 Average Carried 12 | . 3 10 23 19 7 1 4 10 Final Capacity 25 | 8 10 25 25 25 5 5 5 25 Final Carried 25 | 1 7 16 25 23 4 1 5 18 Class Distribution -------------------- 49% | Mutant 18% | Scavenger-Mutant 17% | Scavenger-Tank 5% | Derelict-Tank 5% | Scavenger-Gunner Dominant Class ---------------- Mutant | -10/Materials Scavenger-Mutant | -10/Subcaves Mutant | -8/Scraptown Derelict-Tank | -6/Factory Mutant | -6/DSF Mutant | -5/Factory Scavenger-Tank | -5/Waste Scavenger-Tank | -5/Factory Resources | -11 -10 -10 -8 -6 -6 -5 -5 -5 ----------- Run | Yrd Mat Sub Scr Fac DSF Fac Was Fac Matter Collected 1662 | 224 56 210 49 . 306 . 327 490 Remotely . | . . . . . . . . . Salvage Created 1344 | . 353 301 . . 160 . . 530 Parts 76 | . 21 22 . . 11 . . 22 Haulers Intercepted . | . . . . . . . . . Recyclers Shooed . | . . . . . . . . . Parts Field Recycled . | . . . . . . . . . Retrieved Matter . | . . . . . . . . . Parts Self-Destructed 25 | . . 25 . . . . . . Prevented . | . . . . . . . . . Kills | -11 -10 -10 -8 -6 -6 -5 -5 -5 ------- Run | Yrd Mat Sub Scr Fac DSF Fac Was Fac Combat Hostiles Destroyed 30 | . 9 10 . . 3 . . 8 Guns 15 | . 9 2 . . 1 . . 3 Cannons 12 | . . 8 . . 2 . . 2 AOE 2 | . . . . . . . . 2 Classes Destroyed 11 | . 3 1 . . 1 . . 6 Worker 1 | . . . . . . . . 1 Recycler 1 | . . . . . . . . 1 Operator 1 | . . . . . . . . 1 Watcher 2 | . 2 . . . . . . . Swarmer 6 | . 3 3 . . . . . . Grunt 7 | . 6 . . . . . . 1 Sentry 1 | . . . . . . . . 1 Specialist 4 | . . . . . 3 . . 1 Hunter 2 | . . . . . . . . 2 Programmer 3 | . . . . . . . . 3 Subdweller 7 | . . 7 . . . . . . Best Kill Streak 3 | . 3 3 . . 3 . . 2 Combat Bots Only 3 | . 3 3 . . 3 . . 2 Max Kills in Single Turn 2 | . 1 1 . . 1 . . 2 Gunslinging . | . . . . . . . . . Exploded 2 | . . . . . . . . 2 Melee . | . . . . . . . . . Uniques/NPCs Destroyed . | . . . . . . . . . Combat | -11 -10 -10 -8 -6 -6 -5 -5 -5 -------- Run | Yrd Mat Sub Scr Fac DSF Fac Was Fac Hostile Shots Fired 781 | . 34 100 . . 351 76 . 220 Missed 204 | . 12 26 . . 109 21 . 36 Hits 577 | . 22 74 . . 242 55 . 184 Melee 9 | . . . . . 9 . . . Projectile 568 | . 22 74 . . 233 55 . 184 AOE 3 | . . . . . . . . 3 Critical Strikes 21 | . . 2 . . 13 1 . 5 Part Disruptions 4 | . . . . . 2 1 . 1 Damage Taken 10719 | . 226 957 . . 4443 1020 33 4040 Core 1908 | . 40 156 . . 702 309 . 701 Absorbed by Shields 39 | . . . . . . 39 . . Redirected to Shielding 107 | . 8 10 . . 86 3 . . Ignored by Resistances 54 | . . . . . . 54 . . Regen/Repaired (Parts) 498 | . . . . . . . 276 222 Core Remaining (%) 46 | 100 . . 21 . 17 . . . Volleys Fired 112 | . 28 29 . . 16 5 1 33 Largest 4 | . 2 2 . . 3 1 3 4 Hottest 245 | . 80 120 . . 228 81 113 245 Shots Fired 243 | . 56 55 . . 39 5 4 84 Gun 160 | . 56 30 . . 17 . 4 53 Cannon 80 | . . 22 . . 22 5 . 31 Launcher . | . . . . . . . . . Special 3 | . . 3 . . . . . . Kinetic 86 | . . 30 . . 12 . 2 42 Thermal 110 | . 28 19 . . 27 . 2 34 Explosive . | . . . . . . . . . Electromagnetic 47 | . 28 6 . . . 5 . 8 Robot Hit Streak 11 | . 8 11 . . 5 4 8 9 Robot Miss Streak 5 | . 3 3 . . 3 1 . 5 Penetration Max 1 | . . . . . . . . 1 Secondary Targets 1 | . . 1 . . . . . . Max Gunslinging Chain 1 | . . 1 . . . . . . Shots Hit Robots 137 | . 30 37 . . 23 4 4 39 Core Hits 61 | . 18 13 . . 6 1 1 22 Critical Kills 1 | . . . . . . . . 1 Critical Parts Destroyed . | . . . . . . . . . Critical Strikes 7 | . 2 1 . . 1 . . 3 Burn 1 | . . . . . 1 . . . Destroy 1 | . . . . . . . . 1 Blast 3 | . . 1 . . . . . 2 Corrupt 2 | . 2 . . . . . . . Melee Attacks . | . . . . . . . . . Impact . | . . . . . . . . . Slashing . | . . . . . . . . . Piercing . | . . . . . . . . . Sneak Attacks . | . . . . . . . . . Combat Hostiles . | . . . . . . . . . Follow-up Attacks . | . . . . . . . . . Damage Inflicted 3027 | . 400 630 . . 510 117 81 1289 Guns 1550 | . 400 217 . . 214 . 81 638 Cannons 1204 | . . 378 . . 296 117 . 413 Explosions 145 | . . . . . . . . 145 Melee . | . . . . . . . . . Ramming 93 | . . . . . . . . 93 Kinetic 1043 | . . 335 . . 159 . 55 494 Thermal 1258 | . 198 251 . . 351 . 26 432 Explosive 145 | . . . . . . . . 145 Electromagnetic 488 | . 202 44 . . . 117 . 125 Impact . | . . . . . . . . . Slashing . | . . . . . . . . . Piercing . | . . . . . . . . . Highest Corruption 12 | . . . . . 12 7 7 11 Average Corruption 7 | . . . . . 4 5 7 8 Corruption Purged . | . . . . . . . . . Corruption Blocked . | . . . . . . . . . Effects 71 | . . . . . 7 2 16 46 Message Errors 18 | . . . . . 1 . 2 15 Matter Fused 19 | . . . . . 1 2 2 14 Heat Flow Errors 7 | . . . . . . . 1 6 Energy Discharges 8 | . . . . . 3 . 5 . Parts Rejected 2 | . . . . . 1 . . 1 Parts Fused 1 | . . . . . . . . 1 Data Loss (minor) 9 | . . . . . 1 . 3 5 Data Loss (major) 1 | . . . . . . . 1 . Misfires 2 | . . . . . . . 1 1 Alerts 1 | . . . . . . . 1 . Weapon Failures 3 | . . . . . . . . 3 Overload Shots . | . . . . . . . . . Overflow Damage 47 | . . . . . 22 . . 25 Projectiles 33 | . . . . . 22 . . 11 Explosions . | . . . . . . . . . Melee 14 | . . . . . . . . 14 Knockbacks 11 | . . 1 . . 6 . . 4 Impact . | . . . . . . . . . Kinetic 9 | . . 1 . . 4 . . 4 Secondary 2 | . . . . . 2 . . . Self-Inflicted Damage 98 | . . . . . . . . 98 Shots 1 | . . . . . . . . 1 Rammed . | . . . . . . . . . Targets Rammed 12 | . . . . . . . . 12 Kicked 12 | . . . . . . . . 12 Crushed . | . . . . . . . . . Highest Temperature 720 | . 108 27 . . 392 72 278 720 Average Temperature 157 | . 34 9 . . 144 36 122 202 Received Heat Transfer 1716 | . 60 237 . . 750 96 . 573 Effects 56 | . . . . . . . 2 54 Shutdowns 15 | . . . . . . . . 15 Energy Bleed 4 | . . . . . . . 1 3 Interference 8 | . . . . . . . 1 7 Matter Decay 5 | . . . . . . . . 5 Short Circuit 7 | . . . . . . . . 7 Damage (minor) 7 | . . . . . . . . 7 Damage (major) 7 | . . . . . . . . 7 Damage (core) 3 | . . . . . . . . 3 Siege Activations . | . . . . . . . . . Martial Activations . | . . . . . . . . . Shielding Activations . | . . . . . . . . . Robots Disrupted . | . . . . . . . . . Combat Hostiles . | . . . . . . . . . Robots Corrupted 1 | . . . . . . . . 1 Combat Hostiles 1 | . . . . . . . . 1 Parts Fried . | . . . . . . . . . Impact Corruptions 3 | . . . . . . . . 3 Robots Melted . | . . . . . . . . . Combat Hostiles . | . . . . . . . . . Parts Melted 2 | . . 2 . . . . . . Heat Transferred 2811 | . 450 562 . . 770 . 74 955 Parts Sabotaged . | . . . . . . . . . Parts Stolen . | . . . . . . . . . Parts Stripped . | . . . . . . . . . Power Chain Reactions . | . . . . . . . . . Alert | -11 -10 -10 -8 -6 -6 -5 -5 -5 ------- Run | Yrd Mat Sub Scr Fac DSF Fac Was Fac Maximum Alert Level 1 | . . . . . . . . 1 Low Security (%) 85 | 100 100 . . 100 100 100 100 56 Level 1 14 | . . . . . . . . 43 Level 2 . | . . . . . . . . . Level 3 . | . . . . . . . . . Level 4 . | . . . . . . . . . Level 5 . | . . . . . . . . . High Security . | . . . . . . . . . Max Security . | . . . . . . . . . Peak Influence 303 | . 87 . . 5 75 22 36 303 Initial 4 | . . . . . . 4 . . Average 74 | . 36 . . . 13 2 4 191 Influence Increases 1636 | . 279 180 . 5 175 75 88 834 Destroy 0b10 Robot/C 600 | . 180 60 . . 60 . . 300 Destroy 0b10 Robot/NC 30 | . 10 . . . . . . 20 Destroy Leader 114 | . 34 . . . 10 . . 70 Allied During Kill 103 | . . . . . . . . 103 Successful Hack 40 | . 25 . . 5 . . . 10 Disable Machine 135 | . 15 . . . . . . 120 Destroy Structure 284 | . . . . . . . 88 196 Lose Combat Pursuer 330 | . 15 120 . . 105 75 . 15 Influence Decreases 1558 | . 242 175 42 5 165 85 88 756 Entered New Map 66 | . . 18 42 . . 6 . . Time Decay 1010 | . 242 107 . 5 . 60 70 526 Lost Part 404 | . . 50 . . 165 19 . 170 Lost Ally 78 | . . . . . . . 18 60 Squads Dispatched 16 | . 3 . . . 3 4 . 6 Investigation 3 | . 1 . . . . . . 2 Extermination 3 | . . . . . . 1 . 2 Reinforcement 9 | . 2 . . . 3 2 . 2 Assault . | . . . . . . . . . Garrison 1 | . . . . . . 1 . . Intercept . | . . . . . . . . . Searches Triggered . | . . . . . . . . . Construction Impeded 1 | . . . . . . . . 1 Haulers Reinforced . | . . . . . . . . . Active Scanning Responses . | . . . . . . . . . Cargo Convoy Interrupts . | . . . . . . . . . Stealth | -11 -10 -10 -8 -6 -6 -5 -5 -5 --------- Run | Yrd Mat Sub Scr Fac DSF Fac Was Fac Distress Signals 3 | . 1 . . . . . . 2 Communications Jammed . | . . . . . . . . . Distress Signals . | . . . . . . . . . Times Spotted 100 | . 22 18 . . 24 12 4 20 Peak Tracking Total 12 | . 6 5 . . 12 7 2 9 Tactical Retreats 11 | . 1 3 . . 3 3 . 1 Traps | -11 -10 -10 -8 -6 -6 -5 -5 -5 ------- Run | Yrd Mat Sub Scr Fac DSF Fac Was Fac Traps Triggered 10 | . 2 2 . 1 . 4 . 1 Indirectly . | . . . . . . . . . Trap Hack Attempts . | . . . . . . . . . Triggered . | . . . . . . . . . Disarmed . | . . . . . . . . . Reprogrammed . | . . . . . . . . . Reused . | . . . . . . . . . Traps Extracted . | . . . . . . . . . Installed . | . . . . . . . . . Triggered . | . . . . . . . . . Machines | -11 -10 -10 -8 -6 -6 -5 -5 -5 ---------- Run | Yrd Mat Sub Scr Fac DSF Fac Was Fac Machines Disabled 9 | . 1 . . . . . . 8 Max in Single Turn 1 | . 1 . . . . . . 1 Machines Repaired . | . . . . . . . . . Machines Dismantled . | . . . . . . . . . Machines Sabotaged . | . . . . . . . . . Overloaded Fab Kills . | . . . . . . . . . Hacking | -11 -10 -10 -8 -6 -6 -5 -5 -5 --------- Run | Yrd Mat Sub Scr Fac DSF Fac Was Fac Machines Accessed 20 | . 6 . 3 4 . 1 . 6 Terminals 9 | . 5 . . 1 . . . 3 Fabricators 2 | . . . . 1 . . . 1 Repair Stations 2 | . . . . 1 . . . 1 Recycling Units 2 | . 1 . . 1 . . . . Scanalyzers . | . . . . . . . . . Garrison Access 2 | . . . . . . 1 . 1 Total Hacks 39 | . 12 . 3 5 . 2 . 17 Successful 21 | . 10 . 3 3 . . . 5 Failed 18 | . 2 . . 2 . 2 . 12 Catastrophic 3 | . . . . . . 1 . 2 Database Lockouts . | . . . . . . . . . Manual . | . . . . . . . . . Terminals 19 | . 11 . . 1 . . . 7 Fabricators 2 | . . . . 1 . . . 1 Repair Stations 9 | . . . . 1 . . . 8 Recycling Units 3 | . 1 . . 2 . . . . Scanalyzers . | . . . . . . . . . Garrison Access 3 | . . . . . . 2 . 1 Terminal Hacks 13 | . 9 . 3 1 . . . . Record 7 | . 4 . 3 . . . . . Robot Analysis 1 | . 1 . . . . . . . Prototype ID Bank 2 | . 2 . . . . . . . Open DSF 1 | . . . . 1 . . . . Dispatch Records 1 | . 1 . . . . . . . Hauler Manifests 1 | . 1 . . . . . . . Fabricator Hacks . | . . . . . . . . . Repair Station Hacks 5 | . . . . . . . . 5 Scan Component 3 | . . . . . . . . 3 Repair 2 | . . . . . . . . 2 Recycling Unit Hacks 3 | . 1 . . 2 . . . . Report Inventory 2 | . 1 . . 1 . . . . Retrieve Components 1 | . . . . 1 . . . . Scanalyzer . | . . . . . . . . . Garrison Access Hacks . | . . . . . . . . . Unauthorized Hacks . | . . . . . . . . . Terminals . | . . . . . . . . . Fabricators . | . . . . . . . . . Repair Stations . | . . . . . . . . . Recycling Units . | . . . . . . . . . Scanalyzers . | . . . . . . . . . Garrison Access . | . . . . . . . . . Data Cores Recovered 1 | . . . . . . . . 1 Used . | . . . . . . . . . Hacking Detections 15 | . 5 . . 3 . 1 . 6 Full Trace Events 2 | . . . . . . . . 2 Feedback Events . | . . . . . . . . . Feedback Blocked . | . . . . . . . . . Robot Schematics Acquired . | . . . . . . . . . Robots Built . | . . . . . . . . . Authchips . | . . . . . . . . . Time . | . . . . . . . . . Total Robot Build Rating . | . . . . . . . . . Part Schematics Acquired . | . . . . . . . . . Parts Built . | . . . . . . . . . Authchips . | . . . . . . . . . Time . | . . . . . . . . . Total Part Build Rating . | . . . . . . . . . Parts Repaired 2 | . . . . . . . . 2 Time 181 | . . . . . . . . 181 Parts Recycled . | . . . . . . . . . Recycled Matter . | . . . . . . . . . Retrieved Matter . | . . . . . . . . . Retrieved Components 3 | . . . . 3 . . . . Parts Scanalyzed . | . . . . . . . . . Part Schematics Acquired . | . . . . . . . . . Parts Damaged . | . . . . . . . . . Bothacking | -11 -10 -10 -8 -6 -6 -5 -5 -5 ------------ Run | Yrd Mat Sub Scr Fac DSF Fac Was Fac Used RIF Installer . | . . . . . . . . . Robots Hacked . | . . . . . . . . . Non-combat . | . . . . . . . . . Combat . | . . . . . . . . . Robot Hacks Applied . | . . . . . . . . . Relay Couplers Released . | . . . . . . . . . Fabnet Peak Effective % . | . . . . . . . . . Robots Rewired . | . . . . . . . . . Allies Hacked 1 | . . . . . . . . 1 Hacks Repelled . | . . . . . . . . . Allies | -11 -10 -10 -8 -6 -6 -5 -5 -5 -------- Run | Yrd Mat Sub Scr Fac DSF Fac Was Fac Total Allies 20 | . . . . . . . 20 . Largest Group 20 | . . . . . . . 20 7 Highest-Rated Group 715 | . . . . . . . 715 276 Highest-Rated Ally 50 | . . . . . . . 50 50 Total Orders . | . . . . . . . . . Ally Attacks 163 | . . . . . . . 121 42 Total Damage 5380 | . . . . . . . 3511 1869 Kills 21 | . . . . . . . 10 11 Allies Corrupted . | . . . . . . . . . Allies Melted . | . . . . . . . . . Intel | -11 -10 -10 -8 -6 -6 -5 -5 -5 ------- Run | Yrd Mat Sub Scr Fac DSF Fac Was Fac Active Infowar (turns) 1466 | . . . . 583 198 . . 685 Machine Analysis 1466 | . . . . 583 198 . . 685 Triangulation 299 | . . . . 145 154 . . . ECM 194 | . . . . 146 48 . . . Robot Analysis Total 1 | . 1 . . . . . . . Derelict Logs Recovered 1 | . . 1 . . . . . . Drone Launches . | . . . . . . . . . Drone Recoveries . | . . . . . . . . . Exploration | -11 -10 -10 -8 -6 -6 -5 -5 -5 ------------- Run | Yrd Mat Sub Scr Fac DSF Fac Was Fac Turns Passed 7866 | 82 713 1845 1741 585 357 532 532 1479 Spaces Moved 4477 | 69 492 1078 819 350 180 551 350 588 Core 129 | 15 . . . . 37 76 . 1 Treads 472 | . . . . . . . 235 237 Legs 3315 | 54 492 1078 819 350 129 . 43 350 Wheels . | . . . . . . . . . Hover 255 | . . . . . 14 169 72 . Flight 306 | . . . . . . 306 . . Fastest Speed 39 | 50 120 120 210 130 48 39 77 160 Average Speed 151 | 104 120 158 210 161 132 58 139 185 Slowest Speed 1800 | 120 120 210 210 205 500 150 190 1800 Overloaded Moves . | . . . . . . . . . Propulsion Burnouts . | . . . . . . . . . Robots Hopped . | . . . . . . . . . Potential Cave-ins . | . . . . . . . . . Cave-ins Triggered 1 | . . . . . . . . 1 Exploration Rate (%) 45 | 5 65 62 55 7 89 15 96 13 Regions Visited 8 Branch Regions 2 Pre-discovered Areas 1 | . . 1 . . . . . . Known Exits Taken 1 | . . . . 1 . . . . Unknown Exits Taken 4 | 1 1 1 1 . . . . . Scrap Searched 6 | . . 1 5 . . . . . Spaces Dug . | . . . . . . . . . Terrain Destroyed 34 | . . 2 . . . . . 32 Melee . | . . . . . . . . . Projectile 13 | . . 2 . . . . . 11 AOE 21 | . . . . . . . . 21 Terrain Rammed . | . . . . . . . . . Walls Destroyed . | . . . . . . . . . Machines Disabled . | . . . . . . . . . Actions | -11 -10 -10 -8 -6 -6 -5 -5 -5 --------- Run | Yrd Mat Sub Scr Fac DSF Fac Was Fac Total 5325 | 75 557 1161 844 370 265 756 393 904 Wait 381 | . 29 6 7 . 17 124 . 198 Move 4470 | 68 491 1077 818 349 179 551 349 588 Hop . | . . . . . . . . . Pick Up 101 | 1 5 25 11 7 17 4 9 22 Fast Attach 51 | 6 1 1 . 3 9 7 11 13 Attach 59 | . . 9 . 9 15 8 4 14 Detach 17 | . . . 2 1 2 3 2 7 Swap 23 | . 2 5 1 . 2 3 3 7 Drop 50 | . 1 9 5 1 6 4 14 10 Fire 112 | . 28 29 . . 16 5 1 33 Melee . | . . . . . . . . . Ram . | . . . . . . . . . Kick 12 | . . . . . . . . 12 Crush . | . . . . . . . . . Escape Stasis 47 | . . . . . . 47 . . Rewire . | . . . . . . . . . Trap . | . . . . . . . . . Miscellaneous 2 | . . . . . 2 . . . Route ------- -11/Scrapyard -10/Materials (discovered 3 exits: [*Mat] / [*Min] / [*Sub]) -10/Subcaves (discovered 4 exits: [*Mat x2] / [*Rec] / *Scr) -8/Scraptown -6/Factory -6/DSF -5/Factory -5/Waste -5/Factory History --------- Turn | Location | Event 10 | -11/Scrapyard | Discovered new exit (range 14) 83 | -11/Scrapyard | Entered Materials 84 | -10/Materials | Met a group of wandering Federalists 157 | -10/Materials | Discovered new exit (range 7) 303 | -10/Materials | Build established: Mutant 318 | -10/Materials | Discovered new exit (range 13) 532 | -10/Materials | Discovered new exit (range 13) 796 | -10/Materials | Entered Subcaves 797 | -10/Subcaves | Continued accompanying wandering Federalists (4) 820 | -10/Subcaves | Discovered new exit (range 14) 847 | -10/Subcaves | Disturbed a concealed Subdweller 1204 | -10/Subcaves | Discovered new exit (range 15) 1237 | -10/Subcaves | Lost 5 parts (1p2n2w) 1422 | -10/Subcaves | Shifting Twisted Machinery released Sub. Monowheel 1537 | -10/Subcaves | Discovered new exit (range 13) 1552 | -10/Subcaves | Shifting Twisted Machinery released Sub. Shrapnel Launcher 1679 | -10/Subcaves | Build established: Scavenger-Mutant 1993 | -10/Subcaves | A swath of the cavern ceiling suddenly collapsed 2158 | -10/Subcaves | Core integrity fell below 50% 2641 | -10/Subcaves | Entered Scraptown 2954 | -8/Scraptown | Build established: Mutant 3030 | -8/Scraptown | Visited UFD Registry 3079 | -8/Scraptown | Visited Cyclists 3156 | -8/Scraptown | Visited Symbiants 3255 | -8/Scraptown | Visited Awakened 3320 | -8/Scraptown | Visited Shadow of the Wyrm 3383 | -8/Scraptown | Visited The Evicted 3688 | -8/Scraptown | Visited Spacefarers 3730 | -8/Scraptown | Visited Cave Peace 4255 | -8/Scraptown | Discovered new exit (range 6) 4382 | -8/Scraptown | Entered Factory 4382 | -6/Factory | Evolved 8 slots: Power x1, Propulsion x3, Utility x3, Weapon x1 4677 | -6/Factory | Build established: Derelict-Tank 4750 | -6/Factory | Identified exit to DSF 4967 | -6/Factory | Entered DSF 5011 | -6/DSF | Additional patrols routed to DSF 5076 | -6/DSF | Lost 6 parts (2u3w) 5239 | -6/DSF | Core integrity fell below 50% 5261 | -6/DSF | Lost 18 parts (2p5n5u6w) 5270 | -6/DSF | System corruption reached 10% 5292 | -6/DSF | Discovered new exit (range 15) 5321 | -6/DSF | Core integrity fell below 20% 5324 | -6/DSF | Entered Factory 5324 | -5/Factory | Evolved 2 slots: Utility x1, Weapon x1 5352 | -5/Factory | Lost 8 parts (1n7u) 5456 | -5/Factory | Build established: Mutant 5796 | -5/Factory | Garrison activated, responded to threat 5856 | -5/Factory | Sucked down chute 5856 | -5/Factory | Entered Waste 5857 | -5/Waste | Met a frightened Derelict 5885 | -5/Waste | Lost 9 parts (2p4n2u1w) 5888 | -5/Waste | Warlord forces began an assault 5947 | -5/Waste | Spotted C-40 Crusher 5957 | -5/Waste | Spotted C-40 Crusher 5966 | -5/Waste | Allies destroyed C-40 Crusher 5980 | -5/Waste | Spotted C-40 Crusher 5985 | -5/Waste | Spotted C-40 Crusher 5987 | -5/Waste | Allies destroyed C-40 Crusher 6037 | -5/Waste | Found Unknown Protection 6037 | -5/Waste | Identified Damper Plating 6062 | -5/Waste | Spotted C-40 Crusher 6071 | -5/Waste | Allies destroyed C-40 Crusher 6074 | -5/Waste | Spotted C-40 Crusher 6078 | -5/Waste | Allies destroyed C-40 Crusher 6101 | -5/Waste | Lost 3 allies 6149 | -5/Waste | Discovered new exit (range 16) 6338 | -5/Waste | Build established: Scavenger-Tank 6386 | -5/Waste | Identified exit to Factory 6388 | -5/Waste | Entered Factory 6388 | -5/Factory | Accompanied by 7 allies 6833 | -5/Factory | Repaired Broken Lgt. Quantum Reactor 6912 | -5/Factory | Repaired Broken Hvy. Treads 6923 | -5/Factory | P-70 Sage assimilated allied W5-KBF(d) 6974 | -5/Factory | Crushed by falling debris 6975 | -5/Factory | Lost 4 allies 7035 | -5/Factory | Core integrity fell below 50% 7049 | -5/Factory | Lost 3 parts (1p1n1u) 7503 | -5/Factory | System corruption reached 10% 7830 | -5/Factory | Build established: Scavenger-Gunner 7840 | -5/Factory | Core integrity fell below 20% 7867 | -5/Factory | Destroyed by G-50 Soldier with Heavy Laser Last Messages --------------- 07837_ R-10 Processor collects Corrupted Imp. VSS Leg. 07838_ K-01 Serf collects debris. 07839_ Power failure, Lgt. Fission Core shutdown. 07839_ Slug penetrates G-50 Soldier. 07840_ Lgt. Fission Core broken. 07840_ Overheating: Short circuit. 07841_ Overheating: Energy bleed (-81). 07841_ K-01 Serf collects debris. 07842_ Penetrated by Slug. 07842_ Broken Hvy. Gatling Laser destroyed. 07844_ K-01 Serf collects debris. 07847_ System corrupted: Backup Laser III rejected. 07847_ Centrium Leg destroyed. 07850_ Imp. Heat Sink destroyed. 07852_ R-10 Processor collects Backup Laser III. 07854_ Broken Lgt. Fission Core destroyed. 07855_ Broken Flexi-carbon Leg destroyed. 07863_ System corrupted: Heat flow error (+290). 07863_ Lgt. Fission Core destroyed. 07867_ G-50 Soldier IFF system glitched. Map ----- +----------------------------------------------------+ | ?????????????????????????????????????????????????? | | ?????????????????????????????????????????????????? | | ?????????????????????????????????????????????????? | | ?????????????????????????????????????????????????? | | ?????????????????????????????????????????????????? | | ?????????????????????????????????????????????????? | | ?????????????????????????????????????????????????? | | ?????????????????????????????????????????????????? | | ""???????????????????????????????????????????????? | | ""???????????????????????????????????????????????? | | ""???????????????????????????????????????????????? | | ""???????????????????????????????????????????????? | | ""???????????????????????????????????????????????? | | ""???????????????????????????????????????????????? | | ""???????????????????????????????????????????????? | | ?????????????????????????????????????????????????? | | ??????????????????###########????????????????????? | | ??????????????????# #????????????????????? | | ??????????????????# #????????????????????? | | ??????????????????# #????????????????????? | | ?"""?"""?"""??##### #????????????????????? | | ?"""?"""?"""??# # #????????????????????? | | ?"""?"""?"""??# + #????????????????????? | | ??????????????+ #?? #????????????????????? | | ??????????????# #???? ?????????????????????? | | ???############ ##????#@###????????????????????? | | ???# # ######g#"##???????????????????? | | ???# """ """ # #???????????????????? | | ???# """ """ # g #???????????????????? | | ???# """ """ # #???????????????????? | | ???# # #???????????????????? | | ???# * # % % R R#???????????????????? | | ???# # " " " " " R#???????????????????? | | ???# # " " " " " #???????????????????? | | ???########+## " " " " " ?????????????????? | | ########## # " " " "Y" ???????????????? | | " " " " " " ??????????????? | | ########## ### " " " " " ?????????????? | | ?????######+#### " " " " " ??????????????? | | ?????# # " " " " " ##### ?????????????? | | ?????# # " " " " "??#???? ????????????? | | ?????# # ?????????? ????????????? | | ?????# # " " "??????????????????????? | | ?????########### " " "??????????????????????? | | ???????????????# " " "??????????????????????? | | ???????????????# " " "??????????????????????? | | ???????????????# " "?"??????????????????????? | | ???????????????# "?"?"??????????????????????? | | ???????????????# "" "?"?"??????????????????????? | | ???????????????+ "Y "?"?"??????????????????????? | +----------------------------------------------------+ Best States ------------- Heat Dissipation 54 Energy Generation 41 Energy Capacity 735 Matter Stores 300 Matter Capacity 450 Sight Range 16 Terrain Scan Density 10 ECM Strength 2 Armor Coverage 1600 Resistance: KI 25 Resistance: TH 20 Resistance: EM 90 Core Shielding 20 Phase Shifting 10 Evasion (%) 62 Targeting Accuracy 8 Target Analysis 6 Core Analysis 6 Recoil Reduction 5 Offensive Hacking 10 Authchip Count 1 Item Schematics ----------------- None Robot Schematics ------------------ None Fabricated ------------ Nothing Repaired ---------- Lgt. Quantum Reactor | 8% | -5/Factory | Broken Hvy. Treads | 70% | -5/Factory | Broken Alien Tech Used ----------------- None Achievements -------------- Tank We Are Legion Challenges ------------ None Game ------ Seed SapperHybridEngine Manual? 0 Play Time 01:25:44 Cumulative 9.3 hours Start 2025.10.03 @ 22:26:40 End 2025.10.03 @ 23:52:14 Sessions 1 Manual Loads 0 Difficulty Rogue Special Mode None Game No. 13 Rogue 13 Adventurer 0 Explorer 0 Win Type - Total 0 Types 0/0/0/0/0/0/0/0/0/0 Lore% 5 Gallery% 18 Achievement% 14 Wizard Run 0 Options --------- Layout 0 ASCII 0 Keyboard 0 Movement Mouse Keybinds 0 Fullscreen 2 Font 36/Smallcaps Map View 38x25 Zoom Use 96% Tactical HUD 1 Map Filters NONE Filters NONE Steam 1 RUN: 590dd241-85d8-447b-9b34-27b871af5903